[Event "***Titled Tuesday 3|2 Blitz"]
[Site "Chess.com"]
[Date "2017.02.07"]
[Round "3"]
[White "pedroholly22"]
[Black "StegariuVlad"]
[Result "1-0"]
[WhiteElo "2285"]
[BlackElo "2371"]
[TimeControl "180+2"]
[EndTime "13:42:21 PST"]
[Termination "pedroholly22 won by resignation"]

1. e4 {[%clk 0:03:02]} 1... d5 {[%clk 0:02:59.2]} 2. exd5 {[%clk 0:03:01.1]}
2... Qxd5 {[%clk 0:02:59.5]} 3. Nc3 {[%clk 0:03:01.5]} 3... Qd8 {[%clk
0:02:51.6]} 4. d4 {[%clk 0:03:00.7]} 4... c6 {[%clk 0:02:51]} 5. Nf3 {[%clk
0:03:00.6]} 5... Nf6 {[%clk 0:02:47.9]} 6. Bc4 {[%clk 0:02:53.3]} 6... Bf5
{[%clk 0:02:46.6]} 7. O-O {[%clk 0:02:52.9]} 7... e6 {[%clk 0:02:45.9]} 8. Re1
{[%clk 0:02:53.3]} 8... Be7 {[%clk 0:02:46]} 9. h3 {[%clk 0:02:47.9]} 9... O-O
{[%clk 0:02:41.7]} 10. Bf4 {[%clk 0:02:48.6]} 10... Nbd7 {[%clk 0:02:40.1]} 11.
Qe2 {[%clk 0:02:48]} 11... Nb6 {[%clk 0:02:40.4]} 12. Bd3 {[%clk 0:02:47.7]}
12... Bxd3 {[%clk 0:02:39.6]} 13. Qxd3 {[%clk 0:02:49.1]} 13... c5 {[%clk
0:02:27.2]} 14. Rad1 {[%clk 0:02:41.5]} 14... Nbd5 {[%clk 0:02:22.7]} 15. Nxd5
{[%clk 0:02:41.2]} 15... Nxd5 {[%clk 0:02:23.7]} 16. Bh2 {[%clk 0:02:41.7]}
16... Qb6 {[%clk 0:02:20.4]} 17. c4 {[%clk 0:02:31]} 17... Nb4 {[%clk 0:02:20]}
18. Qb3 {[%clk 0:02:31.5]} 18... cxd4 {[%clk 0:02:18.5]} 19. a3 {[%clk
0:02:10.7]} 19... Nc6 {[%clk 0:02:14.8]} 20. Qxb6 {[%clk 0:02:11]} 20... axb6
{[%clk 0:02:16.1]} 21. Nxd4 {[%clk 0:02:11.8]} 21... Na5 {[%clk 0:02:14.9]} 22.
Rc1 {[%clk 0:02:11.4]} 22... Rac8 {[%clk 0:02:15.1]} 23. Rc2 {[%clk 0:01:43.8]}
23... Rxc4 {[%clk 0:02:10]} 24. Rd2 {[%clk 0:01:23.8]} 24... Rd8 {[%clk
0:02:03.7]} 25. Red1 {[%clk 0:01:23.7]} 25... Bf6 {[%clk 0:01:52.7]} 26. Nf3
{[%clk 0:01:09.2]} 26... Rxd2 {[%clk 0:01:52.2]} 27. Nxd2 {[%clk 0:01:09.9]}
27... Rd4 {[%clk 0:01:53]} 28. Kf1 {[%clk 0:01:01.3]} 28... Nc4 {[%clk
0:01:29.4]} 29. Bf4 {[%clk 0:00:47.4]} 29... Nxd2+ {[%clk 0:01:27]} 30. Bxd2
{[%clk 0:00:33.7]} 30... Bg5 {[%clk 0:01:23.1]} 31. f4 {[%clk 0:00:34.2]} 31...
Bxf4 {[%clk 0:01:17.9]} 32. Rc1 {[%clk 0:00:35.3]} 32... g5 {[%clk 0:01:17.7]}
33. Rc8+ {[%clk 0:00:34.3]} 33... Kg7 {[%clk 0:01:18.6]} 34. Bc3 {[%clk
0:00:35.6]} 34... Be5 {[%clk 0:01:16.5]} 35. Bxd4 {[%clk 0:00:36.8]} 35... Bxd4
{[%clk 0:01:17.8]} 36. b3 {[%clk 0:00:34.6]} 36... b5 {[%clk 0:01:16]} 37. Rb8
{[%clk 0:00:32.6]} 37... b6 {[%clk 0:01:17.2]} 38. Ke2 {[%clk 0:00:32.2]} 38...
e5 {[%clk 0:01:15.8]} 39. g4 {[%clk 0:00:31.7]} 39... h5 {[%clk 0:01:13.8]} 40.
Kf3 {[%clk 0:00:32.2]} 40... hxg4+ {[%clk 0:01:14.8]} 41. hxg4 {[%clk 0:00:33]}
41... Kf6 {[%clk 0:01:16.2]} 42. Ke4 {[%clk 0:00:33.7]} 42... Ke6 {[%clk
0:01:17.7]} 43. Rd8 {[%clk 0:00:33.3]} 43... f6 {[%clk 0:01:17.9]} 44. Rd5
{[%clk 0:00:34.2]} 44... Bc5 {[%clk 0:01:15.6]} 45. b4 {[%clk 0:00:34.3]} 45...
Bd4 {[%clk 0:01:16.7]} 46. Rxb5 {[%clk 0:00:35.5]} 46... Kd6 {[%clk 0:01:18.3]}
47. a4 {[%clk 0:00:36.1]} 47... Kc6 {[%clk 0:01:19.7]} 48. Rd5 {[%clk
0:00:37.1]} 48... Bc3 {[%clk 0:01:20.8]} 49. b5+ {[%clk 0:00:31.6]} 49... Kc7
{[%clk 0:01:22]} 50. Rd3 {[%clk 0:00:31.4]} 50... Bd4 {[%clk 0:01:17.8]} 51. Kf5
{[%clk 0:00:32]} 51... Ba1 {[%clk 0:01:17.6]} 52. Rh3 {[%clk 0:00:30.7]} 52...
Kd6 {[%clk 0:01:18.2]} 53. Rh6 {[%clk 0:00:30.6]} 53... e4 {[%clk 0:01:18.1]}
54. Kxe4 {[%clk 0:00:31]} 54... Ke6 {[%clk 0:01:19.5]} 55. Rh7 {[%clk
0:00:30.3]} 55... Be5 {[%clk 0:01:19.6]} 56. Rb7 {[%clk 0:00:31.1]} 1-0

[Event "***Titled Tuesday 3|2 Blitz"]
[Site "Chess.com"]
[Date "2017.02.07"]
[Round "3"]
[White "underdogchss"]
[Black "pastouche06"]
[Result "1/2-1/2"]
[WhiteElo "2435"]
[BlackElo "2331"]
[TimeControl "180+2"]
[EndTime "13:42:25 PST"]
[Termination "Game drawn by agreement"]

1. d4 {[%clk 0:03:02]} 1... Nf6 {[%clk 0:02:51.8]} 2. Nf3 {[%clk 0:03:02]} 2...
d5 {[%clk 0:02:51.2]} 3. c4 {[%clk 0:03:02.4]} 3... e6 {[%clk 0:02:51.8]} 4. Nc3
{[%clk 0:03:03.4]} 4... dxc4 {[%clk 0:02:52.6]} 5. e3 {[%clk 0:03:02.3]} 5... a6
{[%clk 0:02:53.4]} 6. a4 {[%clk 0:02:59.1]} 6... c5 {[%clk 0:02:53.3]} 7. Bxc4
{[%clk 0:03:00]} 7... Nc6 {[%clk 0:02:52.5]} 8. O-O {[%clk 0:02:57.9]} 8... Be7
{[%clk 0:02:50]} 9. dxc5 {[%clk 0:02:57.6]} 9... Bxc5 {[%clk 0:02:49.7]} 10.
Qxd8+ {[%clk 0:02:57.4]} 10... Kxd8 {[%clk 0:02:51.6]} 11. Ng5 {[%clk
0:02:52.7]} 11... Ke7 {[%clk 0:02:39]} 12. Nge4 {[%clk 0:02:53.3]} 12... Bb4
{[%clk 0:02:34]} 13. Nxf6 {[%clk 0:02:52.8]} 13... gxf6 {[%clk 0:02:33.9]} 14.
Bd2 {[%clk 0:02:49]} 14... Rd8 {[%clk 0:02:29]} 15. Rfd1 {[%clk 0:02:49.6]}
15... b6 {[%clk 0:02:08]} 16. Be2 {[%clk 0:02:25]} 16... Bb7 {[%clk 0:02:05.1]}
17. Bf3 {[%clk 0:02:26.2]} 17... Rac8 {[%clk 0:01:49.1]} 18. Bxc6 {[%clk
0:02:15.3]} 18... Bxc6 {[%clk 0:01:51]} 19. Nd5+ {[%clk 0:02:16.3]} 19... Bxd5
{[%clk 0:01:49.7]} 20. Bxb4+ {[%clk 0:02:17.4]} 20... Ke8 {[%clk 0:01:49.8]} 21.
Rac1 {[%clk 0:02:12.3]} 21... f5 {[%clk 0:01:46.9]} 22. f3 {[%clk 0:02:10.4]}
22... Rc4 {[%clk 0:01:31.5]} 23. Rxc4 {[%clk 0:02:05.6]} 23... Bxc4 {[%clk
0:01:33.4]} 24. Rc1 {[%clk 0:02:02.9]} 24... Bb3 {[%clk 0:01:28.4]} 25. a5
{[%clk 0:02:03.5]} 25... bxa5 {[%clk 0:01:26.4]} 26. Bxa5 {[%clk 0:02:04.4]}
26... Rd1+ {[%clk 0:01:27.1]} 27. Rxd1 {[%clk 0:02:05.6]} 27... Bxd1 {[%clk
0:01:29]} 28. Bc3 {[%clk 0:02:02]} 28... Ba4 {[%clk 0:01:28.1]} 29. Kf2 {[%clk
0:02:03.1]} 29... Bb5 {[%clk 0:01:27.6]} 30. Bf6 {[%clk 0:02:03.5]} 30... Kf8
{[%clk 0:01:23.5]} 31. Kg3 {[%clk 0:02:01.8]} 31... Kg8 {[%clk 0:01:24.8]} 32.
Kf4 {[%clk 0:02:01.2]} 32... Bc4 {[%clk 0:01:25]} 33. h4 {[%clk 0:01:54.6]}
33... a5 {[%clk 0:01:21.8]} 34. Bc3 {[%clk 0:01:52.2]} 34... a4 {[%clk
0:01:22.7]} 35. Bf6 {[%clk 0:01:53.9]} 35... Bb3 {[%clk 0:01:23.7]} 36. g4
{[%clk 0:01:39.5]} 36... fxg4 {[%clk 0:01:23.7]} 37. fxg4 {[%clk 0:01:40.4]}
37... h5 {[%clk 0:01:08.9]} 38. gxh5 {[%clk 0:01:31.1]} 38... e5+ {[%clk
0:00:59.4]} 39. Bxe5 {[%clk 0:01:22.9]} 39... Kh7 {[%clk 0:01:01.3]} 40. Kg5
{[%clk 0:01:21.8]} 40... Bc4 {[%clk 0:01:00.8]} 41. Bf6 {[%clk 0:01:22.3]} 41...
Bb3 {[%clk 0:01:01.9]} 42. h6 {[%clk 0:01:18.4]} 42... Bc4 {[%clk 0:01:01.8]}
43. Bg7 {[%clk 0:01:19.4]} 43... Bb3 {[%clk 0:01:02.7]} 44. Kf6 {[%clk
0:01:20.5]} 44... Bc4 {[%clk 0:01:03.9]} 45. e4 {[%clk 0:01:21.6]} 45... Bb3
{[%clk 0:01:04.9]} 46. h5 {[%clk 0:01:13.7]} 46... Bc4 {[%clk 0:01:04]} 47. Ke5
{[%clk 0:01:13.1]} 47... Be2 {[%clk 0:00:59.2]} 48. Kf5 {[%clk 0:01:13.1]} 48...
Bc4 {[%clk 0:00:58.1]} 49. e5 {[%clk 0:01:10.7]} 49... Be6+ {[%clk 0:00:57.7]}
50. Kf6 {[%clk 0:01:06.9]} 50... Bb3 {[%clk 0:00:59.6]} 51. Ke7 {[%clk
0:01:06.9]} 51... Be6 {[%clk 0:01:00]} 52. Kd6 {[%clk 0:01:07.9]} 52... Bb3
{[%clk 0:00:59.9]} 53. Kc5 {[%clk 0:01:08.1]} 53... Bc2 {[%clk 0:00:56.5]} 54.
Kb4 {[%clk 0:01:07.5]} 54... Bb3 {[%clk 0:00:58]} 1/2-1/2

[Event "***Titled Tuesday 3|2 Blitz"]
[Site "Chess.com"]
[Date "2017.02.07"]
[Round "3"]
[White "destroyer305"]
[Black "Vrolijk"]
[Result "1-0"]
[WhiteElo "2321"]
[BlackElo "2294"]
[TimeControl "180+2"]
[EndTime "13:42:27 PST"]
[Termination "destroyer305 won by checkmate"]

1. e4 {[%clk 0:01:31.5]} 1... c6 {[%clk 0:02:57]} 2. d4 {[%clk 0:01:31.2]} 2...
d5 {[%clk 0:02:58]} 3. exd5 {[%clk 0:01:33.1]} 3... cxd5 {[%clk 0:02:59]} 4. Bd3
{[%clk 0:01:34.8]} 4... Nc6 {[%clk 0:02:59.3]} 5. c3 {[%clk 0:01:36.5]} 5... g6
{[%clk 0:02:54.2]} 6. Bf4 {[%clk 0:01:38]} 6... Bg7 {[%clk 0:02:54.3]} 7. Nd2
{[%clk 0:01:39.5]} 7... Nh6 {[%clk 0:02:54]} 8. h3 {[%clk 0:01:40]} 8... f6
{[%clk 0:02:52.1]} 9. Ngf3 {[%clk 0:01:40.1]} 9... Nf7 {[%clk 0:02:53.2]} 10.
Bg3 {[%clk 0:01:40.6]} 10... O-O {[%clk 0:02:53.4]} 11. O-O {[%clk 0:01:41]}
11... e5 {[%clk 0:02:54.5]} 12. dxe5 {[%clk 0:01:42.6]} 12... fxe5 {[%clk
0:02:08.5]} 13. Bb5 {[%clk 0:01:41.2]} 13... Bd7 {[%clk 0:01:59.6]} 14. Nb3
{[%clk 0:01:40.1]} 14... a6 {[%clk 0:01:56.2]} 15. Be2 {[%clk 0:01:38.6]} 15...
Be6 {[%clk 0:01:55.8]} 16. Nc5 {[%clk 0:01:39.5]} 16... Bc8 {[%clk 0:01:56.4]}
17. Qb3 {[%clk 0:01:33]} 17... b6 {[%clk 0:01:48.8]} 18. Qa4 {[%clk 0:01:26.9]}
18... Qd6 {[%clk 0:01:23.7]} 19. Nb3 {[%clk 0:00:58.1]} 19... Bd7 {[%clk
0:01:20.3]} 20. Qa3 {[%clk 0:00:19.3]} 20... Qxa3 {[%clk 0:01:17.9]} 21. bxa3
{[%clk 0:00:21.2]} 21... Be6 {[%clk 0:01:12.2]} 22. Rfd1 {[%clk 0:00:21.9]}
22... Rfc8 {[%clk 0:01:09.5]} 23. Rac1 {[%clk 0:00:22.2]} 23... Bf8 {[%clk
0:01:02.7]} 24. c4 {[%clk 0:00:22.1]} 24... dxc4 {[%clk 0:00:53.6]} 25. Bxc4
{[%clk 0:00:22.5]} 25... Bxc4 {[%clk 0:00:55.5]} 26. Rxc4 {[%clk 0:00:24.2]}
26... Bxa3 {[%clk 0:00:57.1]} 27. Re4 {[%clk 0:00:19.1]} 27... Re8 {[%clk
0:00:54.3]} 28. Rd7 {[%clk 0:00:18.1]} 28... Rad8 {[%clk 0:00:49.3]} 29. Rc7
{[%clk 0:00:17.7]} 29... Rd1+ {[%clk 0:00:36.6]} 30. Kh2 {[%clk 0:00:18.5]}
30... Nd6 {[%clk 0:00:38.1]} 31. Ra4 {[%clk 0:00:16.2]} 31... e4 {[%clk
0:00:18.4]} 32. Ng5 {[%clk 0:00:17.2]} 32... e3 {[%clk 0:00:18.1]} 33. fxe3
{[%clk 0:00:17.5]} 33... Nf5 {[%clk 0:00:15.6]} 34. Rxc6 {[%clk 0:00:18.1]}
34... Nxg3 {[%clk 0:00:15.9]} 35. Kxg3 {[%clk 0:00:18.6]} 35... Bd6+ {[%clk
0:00:17.4]} 36. Kf2 {[%clk 0:00:14.2]} 36... Rd5 {[%clk 0:00:17.6]} 37. Nf3
{[%clk 0:00:14.8]} 37... a5 {[%clk 0:00:15.4]} 38. Rd4 {[%clk 0:00:16]} 38...
Rxd4 {[%clk 0:00:16.5]} 39. Nbxd4 {[%clk 0:00:17.9]} 39... Bc5 {[%clk 0:00:17]}
40. a4 {[%clk 0:00:18.8]} 40... Kf7 {[%clk 0:00:17.6]} 41. Rc7+ {[%clk
0:00:19.6]} 41... Kf6 {[%clk 0:00:18.8]} 42. g4 {[%clk 0:00:20.5]} 42... h6
{[%clk 0:00:19.7]} 43. h4 {[%clk 0:00:22.1]} 43... h5 {[%clk 0:00:20.4]} 44. g5#
{[%clk 0:00:23]} 1-0

[Event "***Titled Tuesday 3|2 Blitz"]
[Site "Chess.com"]
[Date "2017.02.07"]
[Round "3"]
[White "Angry_Serb"]
[Black "mrkvoz"]
[Result "0-1"]
[WhiteElo "2411"]
[BlackElo "2626"]
[TimeControl "180+2"]
[EndTime "13:42:29 PST"]
[Termination "mrkvoz won by checkmate"]

1. d4 {[%clk 0:03:01.9]} 1... d6 {[%clk 0:03:00.5]} 2. e4 {[%clk 0:03:01.6]}
2... Nf6 {[%clk 0:03:00.6]} 3. Nc3 {[%clk 0:03:01.8]} 3... e5 {[%clk 0:03:02.1]}
4. Nf3 {[%clk 0:03:02.2]} 4... Nbd7 {[%clk 0:03:01.8]} 5. Be2 {[%clk 0:02:56]}
5... c6 {[%clk 0:03:01.7]} 6. Rg1 {[%clk 0:02:53]} 6... g6 {[%clk 0:03:00.2]} 7.
g4 {[%clk 0:02:54.3]} 7... Bg7 {[%clk 0:03:01.5]} 8. g5 {[%clk 0:02:55.8]} 8...
Nh5 {[%clk 0:03:02.6]} 9. Be3 {[%clk 0:02:56.4]} 9... O-O {[%clk 0:03:02.3]} 10.
dxe5 {[%clk 0:02:50]} 10... dxe5 {[%clk 0:03:02.9]} 11. Nd2 {[%clk 0:02:46.6]}
11... Nf4 {[%clk 0:03:03]} 12. Nc4 {[%clk 0:02:14.8]} 12... b5 {[%clk
0:02:48.4]} 13. Nd6 {[%clk 0:02:05.3]} 13... Qe7 {[%clk 0:02:48.6]} 14. Bg4
{[%clk 0:01:53.1]} 14... Rd8 {[%clk 0:02:49.4]} 15. Nxc8 {[%clk 0:01:47.2]}
15... Raxc8 {[%clk 0:02:49.7]} 16. Qf3 {[%clk 0:01:48.4]} 16... Qxg5 {[%clk
0:02:44.4]} 17. O-O-O {[%clk 0:01:45.3]} 17... Qe7 {[%clk 0:02:46]} 18. Ne2
{[%clk 0:01:32]} 18... Nxe2+ {[%clk 0:02:40.6]} 19. Qxe2 {[%clk 0:01:33.9]}
19... Ra8 {[%clk 0:02:39.9]} 20. h4 {[%clk 0:01:20.6]} 20... Nf6 {[%clk
0:02:40.8]} 21. Bf3 {[%clk 0:01:12.3]} 21... a5 {[%clk 0:02:35.1]} 22. Bg5
{[%clk 0:01:10.3]} 22... a4 {[%clk 0:02:35.1]} 23. h5 {[%clk 0:01:10.2]} 23...
a3 {[%clk 0:02:36.3]} 24. b3 {[%clk 0:01:11.2]} 24... Qc5 {[%clk 0:02:36.9]} 25.
Rd3 {[%clk 0:01:04.1]} 25... Rxd3 {[%clk 0:02:27.9]} 26. Qxd3 {[%clk 0:01:06]}
26... Qxf2 {[%clk 0:02:28.3]} 27. Rf1 {[%clk 0:01:06.3]} 27... Qg3 {[%clk
0:02:28]} 28. Bd2 {[%clk 0:01:05.4]} 28... Nxh5 {[%clk 0:02:25.9]} 29. Qd7
{[%clk 0:01:02.3]} 29... Nf4 {[%clk 0:02:13.6]} 30. Qxc6 {[%clk 0:01:00.3]}
30... Rd8 {[%clk 0:02:09.5]} 31. Qb6 {[%clk 0:00:50.4]} 31... Rc8 {[%clk
0:02:02.9]} 32. Qxb5 {[%clk 0:00:47.9]} 32... Qh3 {[%clk 0:01:48.7]} 33. Kb1
{[%clk 0:00:25]} 33... h5 {[%clk 0:01:47.3]} 34. Bc1 {[%clk 0:00:26]} 34... Qh2
{[%clk 0:01:44.2]} 35. Bd1 {[%clk 0:00:24.1]} 35... h4 {[%clk 0:01:45]} 36. Qd7
{[%clk 0:00:20.7]} 36... Ra8 {[%clk 0:01:40.5]} 37. Qb7 {[%clk 0:00:21.6]} 37...
Rf8 {[%clk 0:01:39.5]} 38. Bxa3 {[%clk 0:00:22.2]} 38... Qg2 {[%clk 0:01:41]}
39. Re1 {[%clk 0:00:16.4]} 39... Re8 {[%clk 0:01:32.4]} 40. Qc6 {[%clk
0:00:16.8]} 40... Rd8 {[%clk 0:01:29.7]} 41. Bb4 {[%clk 0:00:17.2]} 41... h3
{[%clk 0:01:29.6]} 42. Qc7 {[%clk 0:00:17.7]} 42... Rd4 {[%clk 0:01:24.9]} 43.
Qc8+ {[%clk 0:00:17.9]} 43... Kh7 {[%clk 0:01:24.8]} 44. Bc3 {[%clk 0:00:19.5]}
44... h2 {[%clk 0:01:17.1]} 45. Bxd4 {[%clk 0:00:20.5]} 45... exd4 {[%clk
0:01:18.6]} 46. Qg4 {[%clk 0:00:19.7]} 46... h1=Q {[%clk 0:00:59.6]} 47. Rxh1+
{[%clk 0:00:20.7]} 47... Qxh1 {[%clk 0:01:01.3]} 48. a4 {[%clk 0:00:21.8]} 48...
d3 {[%clk 0:01:01.2]} 49. cxd3 {[%clk 0:00:20.3]} 49... Qe1 {[%clk 0:01:01.4]}
50. Qxf4 {[%clk 0:00:20.9]} 50... Qxd1+ {[%clk 0:01:02.1]} 51. Ka2 {[%clk
0:00:21.4]} 51... Qa1# {[%clk 0:01:02.4]} 0-1

[Event "***Titled Tuesday 3|2 Blitz"]
[Site "Chess.com"]
[Date "2017.02.07"]
[Round "3"]
[White "SwiftyMcBishop"]
[Black "oggy1984"]
[Result "0-1"]
[WhiteElo "2184"]
[BlackElo "2314"]
[TimeControl "180+2"]
[EndTime "13:42:35 PST"]
[Termination "oggy1984 won by resignation"]

1. e4 {[%clk 0:03:02]} 1... c5 {[%clk 0:02:59.7]} 2. Nf3 {[%clk 0:03:02.8]} 2...
d6 {[%clk 0:02:59.9]} 3. c3 {[%clk 0:02:53.2]} 3... Nf6 {[%clk 0:02:59.6]} 4. h3
{[%clk 0:02:53.1]} 4... g6 {[%clk 0:02:59.8]} 5. Bd3 {[%clk 0:02:52.7]} 5... Bg7
{[%clk 0:02:59.7]} 6. Bc2 {[%clk 0:02:46.7]} 6... O-O {[%clk 0:02:57.9]} 7. O-O
{[%clk 0:02:48]} 7... e5 {[%clk 0:02:52.9]} 8. d4 {[%clk 0:02:48.2]} 8... Nc6
{[%clk 0:02:52.8]} 9. Be3 {[%clk 0:02:48.6]} 9... b6 {[%clk 0:02:44.7]} 10. Nbd2
{[%clk 0:02:42.5]} 10... Qc7 {[%clk 0:02:40.7]} 11. Rc1 {[%clk 0:02:37.1]} 11...
a5 {[%clk 0:02:30.2]} 12. a3 {[%clk 0:02:26.6]} 12... Nh5 {[%clk 0:02:26.2]} 13.
Nc4 {[%clk 0:02:05.7]} 13... Ba6 {[%clk 0:02:14.7]} 14. Bb3 {[%clk 0:02:00.7]}
14... Nf4 {[%clk 0:01:40.7]} 15. Bxf4 {[%clk 0:01:42.4]} 15... exf4 {[%clk
0:01:40.3]} 16. Re1 {[%clk 0:01:41.8]} 16... Rad8 {[%clk 0:01:36.9]} 17. d5
{[%clk 0:01:25]} 17... Nb8 {[%clk 0:01:27.3]} 18. Qd2 {[%clk 0:01:17.8]} 18...
b5 {[%clk 0:01:26.7]} 19. Nxd6 {[%clk 0:01:09.6]} 19... Qxd6 {[%clk 0:01:25.3]}
20. e5 {[%clk 0:01:10.1]} 20... Qb6 {[%clk 0:01:20.8]} 21. Qxf4 {[%clk
0:01:10.2]} 21... b4 {[%clk 0:01:17]} 22. axb4 {[%clk 0:01:06.7]} 22... axb4
{[%clk 0:01:14.3]} 23. c4 {[%clk 0:01:07]} 23... Nd7 {[%clk 0:01:08.2]} 24. Qg3
{[%clk 0:00:49.4]} 24... Rfe8 {[%clk 0:01:06.1]} 25. Re2 {[%clk 0:00:36.9]}
25... Qb8 {[%clk 0:00:53.6]} 26. Rce1 {[%clk 0:00:36.6]} 26... Nb6 {[%clk
0:00:53.1]} 27. Re4 {[%clk 0:00:30.3]} 27... Bxc4 {[%clk 0:00:45.5]} 28. Bxc4
{[%clk 0:00:30.6]} 28... Nxc4 {[%clk 0:00:46.1]} 29. Rxc4 {[%clk 0:00:32.5]}
29... Rxd5 {[%clk 0:00:46.5]} 30. Rce4 {[%clk 0:00:33]} 30... Re6 {[%clk
0:00:36.5]} 31. Qf4 {[%clk 0:00:27.4]} 31... h6 {[%clk 0:00:34.2]} 32. Qe3
{[%clk 0:00:27.7]} 32... b3 {[%clk 0:00:30.7]} 33. Qe2 {[%clk 0:00:27.6]} 33...
Qb7 {[%clk 0:00:26.5]} 34. Rd1 {[%clk 0:00:27.7]} 34... Rxd1+ {[%clk 0:00:26.1]}
35. Qxd1 {[%clk 0:00:29.6]} 35... Qxe4 {[%clk 0:00:25.9]} 36. Qxb3 {[%clk
0:00:23.9]} 36... Bxe5 {[%clk 0:00:22.9]} 37. Nd2 {[%clk 0:00:21.2]} 37... Qe1+
{[%clk 0:00:21.3]} 38. Nf1 {[%clk 0:00:22.8]} 38... Bd4 {[%clk 0:00:21.8]} 39.
Qf3 {[%clk 0:00:23.1]} 39... Re2 {[%clk 0:00:21.2]} 40. Qa8+ {[%clk 0:00:23.5]}
40... Kg7 {[%clk 0:00:21.5]} 0-1

[Event "***Titled Tuesday 3|2 Blitz"]
[Site "Chess.com"]
[Date "2017.02.07"]
[Round "3"]
[White "Rikikits"]
[Black "ftorodent"]
[Result "1-0"]
[WhiteElo "2626"]
[BlackElo "2497"]
[TimeControl "180+2"]
[EndTime "13:42:40 PST"]
[Termination "Rikikits won by resignation"]

1. e4 {[%clk 0:03:02]} 1... e6 {[%clk 0:02:59.6]} 2. d4 {[%clk 0:02:48.3]} 2...
d5 {[%clk 0:03:00.3]} 3. Nc3 {[%clk 0:02:49.3]} 3... Nf6 {[%clk 0:02:59.6]} 4.
e5 {[%clk 0:02:49]} 4... Nfd7 {[%clk 0:03:00.3]} 5. f4 {[%clk 0:02:48.6]} 5...
c5 {[%clk 0:03:01.4]} 6. Nf3 {[%clk 0:02:48.7]} 6... Be7 {[%clk 0:03:02.5]} 7.
Be3 {[%clk 0:02:49.6]} 7... O-O {[%clk 0:03:03.5]} 8. Qd2 {[%clk 0:02:50.9]}
8... Nc6 {[%clk 0:03:01.8]} 9. Nd1 {[%clk 0:02:48.4]} 9... cxd4 {[%clk
0:02:54.8]} 10. Nxd4 {[%clk 0:02:48.9]} 10... Nc5 {[%clk 0:02:56.2]} 11. Nf2
{[%clk 0:02:49.3]} 11... Nxd4 {[%clk 0:02:39.2]} 12. Bxd4 {[%clk 0:02:49.4]}
12... b6 {[%clk 0:02:40.9]} 13. g3 {[%clk 0:02:45.5]} 13... f5 {[%clk
0:02:27.4]} 14. exf6 {[%clk 0:02:43.6]} 14... Bxf6 {[%clk 0:02:28.1]} 15. Bg2
{[%clk 0:02:44]} 15... Ba6 {[%clk 0:02:24.7]} 16. O-O-O {[%clk 0:02:42.2]} 16...
Rc8 {[%clk 0:02:21.7]} 17. Kb1 {[%clk 0:02:43.1]} 17... Nd7 {[%clk 0:01:43.5]}
18. Rhe1 {[%clk 0:02:41.3]} 18... Re8 {[%clk 0:01:44.7]} 19. Ng4 {[%clk
0:02:38.4]} 19... Bb7 {[%clk 0:01:32.7]} 20. Nxf6+ {[%clk 0:02:35.8]} 20... Nxf6
{[%clk 0:01:33.8]} 21. Bxf6 {[%clk 0:02:30.3]} 21... gxf6 {[%clk 0:01:08.3]} 22.
f5 {[%clk 0:02:28.6]} 22... e5 {[%clk 0:01:05.7]} 23. Bxd5+ {[%clk 0:02:28.5]}
23... Bxd5 {[%clk 0:01:07.2]} 24. Qxd5+ {[%clk 0:02:30.4]} 24... Qxd5 {[%clk
0:01:08.6]} 25. Rxd5 {[%clk 0:02:32.1]} 25... Re7 {[%clk 0:01:10.1]} 26. c3
{[%clk 0:02:31.2]} 26... Rc4 {[%clk 0:01:09.9]} 27. Kc2 {[%clk 0:02:29.5]} 27...
Rg4 {[%clk 0:01:02.7]} 28. Kd3 {[%clk 0:02:28.7]} 28... h5 {[%clk 0:01:00.3]}
29. Ke3 {[%clk 0:02:15.2]} 29... h4 {[%clk 0:00:50.9]} 30. Kf3 {[%clk
0:02:11.6]} 30... Reg7 {[%clk 0:00:51.8]} 31. Rg1 {[%clk 0:02:00.9]} 31... R4g5
{[%clk 0:00:52.2]} 32. g4 {[%clk 0:02:01]} 32... Rxf5+ {[%clk 0:00:53.1]} 33.
gxf5 {[%clk 0:02:01.3]} 33... Rxg1 {[%clk 0:00:52.9]} 34. Rd8+ {[%clk
0:02:02.1]} 34... Kg7 {[%clk 0:00:53.7]} 35. Rd7+ {[%clk 0:02:03.3]} 35... Kh6
{[%clk 0:00:55]} 36. Rxa7 {[%clk 0:01:58.9]} 36... Rf1+ {[%clk 0:00:52.1]} 37.
Kg2 {[%clk 0:01:54.8]} 37... Rxf5 {[%clk 0:00:52.1]} 38. Rb7 {[%clk 0:01:56]}
38... Kg5 {[%clk 0:00:48.9]} 39. Rxb6 {[%clk 0:01:56.9]} 39... e4 {[%clk
0:00:49.8]} 40. Re6 {[%clk 0:01:56.8]} 40... Rf4 {[%clk 0:00:39.3]} 41. a4
{[%clk 0:01:57.7]} 41... Kf5 {[%clk 0:00:40.4]} 42. Re8 {[%clk 0:01:58]} 42...
Rf3 {[%clk 0:00:28]} 43. a5 {[%clk 0:01:43.3]} 43... h3+ {[%clk 0:00:28.8]} 44.
Kg1 {[%clk 0:01:43.6]} 44... Rd3 {[%clk 0:00:24.2]} 45. a6 {[%clk 0:01:36.4]}
45... Rd1+ {[%clk 0:00:21.4]} 46. Kf2 {[%clk 0:01:37.5]} 46... Ra1 {[%clk
0:00:21.9]} 47. Ke3 {[%clk 0:01:30]} 47... Re1+ {[%clk 0:00:22.7]} 48. Kd4
{[%clk 0:01:27.3]} 48... Ra1 {[%clk 0:00:18.2]} 49. b4 {[%clk 0:01:20.8]} 49...
Rd1+ {[%clk 0:00:17.1]} 50. Kc5 {[%clk 0:01:18.8]} 50... Ra1 {[%clk 0:00:18.7]}
51. b5 {[%clk 0:01:19.3]} 51... Kf4 {[%clk 0:00:20.4]} 52. b6 {[%clk 0:01:18.9]}
52... Rxa6 {[%clk 0:00:20.3]} 53. b7 {[%clk 0:01:20.2]} 53... Ra5+ {[%clk
0:00:21.6]} 54. Kc4 {[%clk 0:01:17.8]} 1-0